[Event "10th Cherry Blossom Classic 2023"]
[Site "Dulles"]
[Date "2023.05.26"]
[Round "2.21"]
[White "Michelle Catherina, P."]
[Black "Prem, Pranav"]
[Result "0-1"]
[ECO "B90"]
[WhiteElo "2193"]
[BlackElo "2061"]
[Annotator "TA"]
[PlyCount "150"]
[EventDate "2023.05.24"]
[EventType "swiss"]
[EventCountry "USA"]
[SourceTitle "playchess.com"]
[Source "ChessBase"]
[SourceQuality "1"]
[TimeControl "5400+30"]

{[%evp 10,150,15,9,35,25,31,15,21,17,14,0,0,-14,0,-27,0,0,31,-29,-34,-29,-21,-34,-34,-27,-25,-22,-14,-14,-18,-6,-8,-4,-7,-11,-8,-8,-8,-8,0,0,0,-16,0,0,0,-4,-11,-4,-4,-20,-25,-24,-18,-28,-25,-95,-87,-122,-124,-105,0,-8,0,0,0,0,0,0,0,0,0,0,0,0,0,0,0,0,0,0,0,0,0,0,0,0,0,0,0,0,0,0,0,0,0,0,0,0,0,-8,-8,-8,-8,-8,-8,-8,-8,-8,-8,-8,-8,-8,-8,-8,-8,-8850,-66,-66,-66,-66,-66,-29971,-29972,-29971,-29973,-29973,-29973,-29974,-29975,-29975,-29974,-29988,-29989,-29989,-29990,-29995,-29996,-29996,-29997,-29997,-29997]} 1. e4 {[%emt 0:01:13]} c5 {[%emt 0:00:31]} 2. Nf3 {[%emt 0:00:13]} d6 {[%emt 0:00:23]} 3. d4 {[%emt 0:00:08]} cxd4 {[%emt 0:00:12]} 4. Nxd4 {[%emt 0:00:04]} Nf6 {[%emt 0:00:22]} 5. Nc3 {[%emt 0:00:04]} a6 {[%emt 0:00:17]} 6. Nb3 {[%emt 0:00:04]} h6 {[%emt 0:05:30] B90: Sicilian Najdorf: Unusual White 6th moves, 6 Be3 Ng4 and 6 Be3 e5.} 7. Be3 {[%emt 0:06:06] [#]} Nbd7 $146 {[%emt 0:05:11]} ({Predecessor:} 7... e6 8. a4 Be7 9. a5 O-O {0-1 Pech,J-Hoeppenstein,M DESC GS019 email 2009 (5)}) 8. a4 {[%emt 0:04:20]} b6 {[%emt 1:22:04] The position is equal.} 9. f4 {[%emt 0:10:17][%cal Oe4e5]} e5 {[%emt 0:00:00]} 10. fxe5 {[%emt 0:11:32]} dxe5 {[%emt 0:00:00]} 11. Nd5 {[%emt 0:06:57][%cal Od5b6] Prevents Bb4+} Bd6 {[%emt 0:00:00]} (11... Nxe4 12. Qf3 Nd6 13. Nf6+ Qxf6 14. Qxa8) 12. Bc4 {[%emt 0:05:58]} O-O {[%emt 0:00:00]} (12... Nxe4 13. O-O (13. Qg4 Ng5 $16) 13... Nef6 14. Nc3 $16) (12... Bb7 $5 {[%cal Rf6e4]}) 13. O-O {[%emt 0:03:24][%cal Of1f6]} Bb7 {[%emt 0:00:00]} 14. Qd3 {[%emt 0:01:52]} ({White should play} 14. Rxf6 $14 Nxf6 15. Bxb6) 14... Nxd5 $11 {[%emt 0:00:00]} 15. Bxd5 {[%emt 0:00:47]} Bxd5 {[%emt 0:00:00]} 16. Qxd5 {[%emt 0:05:15]} Nf6 {[%emt 0:00:00]} 17. Qd3 {[%emt 0:03:44]} Be7 {[%emt 0:00:00]} 18. Qxd8 {[%emt 0:11:58][%mdl 64] Remove Defender} Rfxd8 {[%emt 0:00:00]} 19. Bxb6 {[%emt 0:03:11]} Rdc8 {[%emt 0:00:00]} 20. c3 {[%emt 0:02:11]} Rab8 {[%emt 0:00:00]} 21. a5 {[%emt 0:01:48]} Nd7 {[%emt 0:00:00]} 22. Ra2 {[%emt 0:05:09]} Nxb6 {[%emt 0:00:00]} 23. axb6 {[%emt 0:01:21]} Rxb6 {[%emt 0:00:00]} 24. Nd2 {[%emt 0:01:27]} Bc5+ {[%emt 0:00:00]} 25. Kh1 {[%emt 0:00:06]} Be3 {[%emt 0:00:00]} 26. Nf3 {[%emt 0:01:00]} Rc4 {[%emt 0:00:00]} (26... Rcb8 $5 {[%cal Rb6b2]}) 27. Re1 {[%emt 0:08:36]} Rxe4 {[%emt 0:00:00]} 28. Nd2 {[%emt 0:01:57]} Bxd2 {[%emt 0:00:00][%cal Re4e1]} 29. Rxe4 {[%emt 0:00:29] [#]} Bxc3 $1 {[%emt 0:00:00][%mdl 4160] Endgame Back Rank. KRR-KRB} 30. g4 {[%emt 0:03:25]} (30. Rc4 Bxb2) 30... Bd4 {[%emt 0:03:10]} 31. Kg2 {[%emt 0:00:18]} g6 {[%emt 0:00:08]} 32. Re2 {[%emt 0:00:45]} Kg7 {[%emt 0:00:27]} 33. h3 {[%emt 0:00:34]} (33. Rc2 $11) 33... f5 $17 {[%emt 0:01:30] Black is more active.} 34. b4 {[%emt 0:00:40]} Kf6 $1 {[%emt 0:01:00]} ({Much worse is} 34... Rxb4 $6 35. Rxa6 h5 36. gxf5 gxf5 37. Rc2 $11) 35. Ra4 {[%emt 0:00:31]} Bc3 {[%emt 0:02:16]} ({Black should try} 35... h5 $17 36. Kg3 hxg4 37. hxg4 Kg5) 36. Rea2 $11 {[%emt 0:00:29]} Rxb4 {[%emt 0:04:32]} 37. Rxb4 {[%emt 0:00:11]} Bxb4 {[%emt 0:00:01]} 38. Rxa6+ {[%emt 0:00:01] KR-KB} Kg5 {[%emt 0:00:24]} 39. Ra4 {[%emt 0:01:03]} Be1 {[%emt 0:00:27]} 40. Kf3 {[%emt 0:00:48]} e4+ {[%emt 0:00:36]} 41. Ke3 {[%emt 0:00:29]} Bg3 {[%emt 0:00:44]} 42. Ra5 {[%emt 0:00:33]} Bf4+ {[%emt 0:01:00]} 43. Ke2 {[%emt 0:00:01]} h5 {[%emt 0:00:08]} 44. gxf5 {[%emt 0:00:34]} gxf5 {[%emt 0:00:02]} 45. Rb5 {[%emt 0:00:19]} Bc1 {[%emt 0:00:29]} 46. Rc5 {[%emt 0:00:13]} Ba3 {[%emt 0:00:06]} 47. Ra5 {[%emt 0:00:11]} Bd6 {[%emt 0:00:15]} 48. Rd5 {[%emt 0:01:05]} Bc7 {[%emt 0:00:26]} 49. Rc5 {[%emt 0:00:10]} Bh2 {[%emt 0:00:06]} 50. Rb5 {[%emt 0:00:31]} h4 {[%emt 0:02:17]} 51. Rd5 {[%emt 0:01:09]} Kf6 {[%emt 0:01:26]} 52. Ke3 {[%emt 0:00:34]} Kg5 {[%emt 0:00:00]} 53. Rb5 {[%emt 0:00:26]} Bg1+ {[%emt 0:00:00]} 54. Ke2 {[%emt 0:00:05]} Kf6 55. Rb1 {[%emt 0:00:48]} Bd4 56. Rb4 {[%emt 0:00:19]} Ke5 {[%emt 0:01:24] White must now prevent ...f4.} 57. Rb5+ {[%emt 0:00:44]} Ke6 {[%emt 0:00:12] Threatens to win with ...f4.} 58. Rb4 {[%emt 0:00:47]} Kd5 {Strongly threatening ...f4.} 59. Rb7 {[%emt 0:00:29]} f4 60. Rf7 {[%emt 0:00:18]} Be5 {[%emt 0:02:09]} 61. Rf5 {[%emt 0:00:43]} Ke6 62. Rh5 {[%emt 0:00:27]} Bf6 {[%emt 0:00:38]} 63. Ra5 $2 {[%emt 0:00:27][%mdl 8192]} (63. Kf2 $11) 63... Bd4 $1 $19 {[%emt 0:00:53]} 64. Ra6+ {[%emt 0:00:39]} Kd5 {[%emt 0:00:32] ( -> ...f3+)} 65. Ra3 {[%emt 0:00:28]} Bc5 {[%emt 0:00:20]} 66. Rc3 $2 {[%emt 0:00:29][%mdl 8192] [#]} (66. Ra4 $15 f3+ 67. Kf1) 66... Kd4 $1 {[%emt 0:00:17] Black mates.} 67. Rb3 {[%emt 0:00:17]} Kc4 {[%emt 0:00:01]} 68. Rb8 {[%emt 0:00:44]} f3+ {[%emt 0:00:05]} 69. Kf1 {[%emt 0:00:31] [#]} e3 $1 {[%emt 0:00:07]} 70. Re8 {[%emt 0:00:15]} Kd3 {[%emt 0:00:05]} ({Not} 70... e2+ 71. Rxe2 fxe2+ 72. Kxe2 $11) 71. Rd8+ {[%emt 0:00:42]} Bd4 {[%emt 0:00:02]} 72. Kg1 {[%emt 0:00:32]} e2+ {[%emt 0:00:45]} 73. Kh2 {[%emt 0:00:02]} f2 {[%emt 0:00:47]} ({Weaker is} 73... e1=R 74. Rxd4+ Ke2 75. Rd2+ Ke3 76. Rd3+ Kf4 77. Rxf3+ Kxf3 $11) 74. Rf8 {[%emt 0:00:56]} e1=Q {[%emt 0:00:44][%csl Gd4,Gf2][%cal Re1g1]} 75. Rf3+ {[%emt 0:00:11]} Kc4 {[%emt 0:00:05] Weighted Error Value: White=0.07 (flawless) /Black=0.06 (flawless)} 0-1

[Event "10th Cherry Blossom Classic 2023"]
[Site "Dulles"]
[Date "2023.05.26"]
[Round "2.22"]
[White "Prabhu, Naveen"]
[Black "Hu, Merric"]
[Result "1-0"]
[ECO "B31"]
[WhiteElo "2138"]
[BlackElo "2022"]
[Annotator "RC"]
[PlyCount "67"]
[EventDate "2023.05.24"]
[EventType "swiss"]
[EventCountry "USA"]
[SourceTitle "playchess.com"]
[Source "ChessBase"]
[SourceQuality "1"]
[TimeControl "5400+30"]

1. e4 {[%emt 0:00:02]} c5 {[%emt 0:02:17]} 2. Nf3 {[%emt 0:00:12]} Nc6 {[%emt 0:00:05]} 3. Bb5 {[%emt 0:00:11]} g6 {[%emt 0:00:04]} 4. Bxc6 {[%emt 0:00:13]} bxc6 {[%emt 0:00:30]} 5. d4 {[%emt 0:01:01]} Bg7 {[%emt 0:06:32]} 6. dxc5 {[%emt 0:00:43]} Qa5+ {[%emt 0:03:14]} 7. Nbd2 {[%emt 0:00:37]} Ba6 {[%emt 0:02:45]} 8. Rb1 {[%emt 0:02:30]} Qxa2 {[%emt 0:11:02]} 9. b4 {[%emt 0:03:54]} Bc4 {[%emt 0:06:59]} 10. e5 {[%emt 0:10:14]} Nh6 {[%emt 0:08:53]} 11. Bb2 {[%emt 0:11:59]} Be6 {[%emt 0:04:53]} 12. O-O {[%emt 0:08:31]} O-O {[%emt 0:00:41]} 13. Qc1 {[%emt 0:04:35]} Rfb8 {[%emt 0:12:11]} 14. Ra1 {[%emt 0:08:56]} Qd5 {[%emt 0:00:09]} 15. c4 {[%emt 0:06:14]} Qd3 {[%emt 0:00:10]} 16. Ra3 {[%emt 0:04:34]} Qf5 {[%emt 0:00:05]} 17. Bc3 {[%emt 0:00:16]} g5 {[%emt 0:07:59]} 18. Re1 {[%emt 0:04:58]} Qg6 {[%emt 0:04:55]} 19. Nd4 {[%emt 0:01:07]} Nf5 {[%emt 0:02:19]} 20. Nxe6 {[%emt 0:04:57]} Qxe6 {[%emt 0:00:01]} 21. Qc2 {[%emt 0:07:20]} Nh4 {[%emt 0:02:13]} 22. Qe4 {[%emt 0:02:07]} Rb7 {[%emt 0:05:09]} 23. Nf1 {[%emt 0:03:15]} f5 {[%emt 0:02:39]} 24. exf6 {[%emt 0:01:42]} Qxe4 {[%emt 0:00:08]} 25. Rxe4 {[%emt 0:00:03]} Bxf6 {[%emt 0:00:07]} 26. Bd2 {[%emt 0:00:34]} Kf7 {[%emt 0:05:36]} 27. Ng3 {[%emt 0:01:38]} Kg6 {[%emt 0:01:49]} 28. f4 {[%emt 0:00:49]} gxf4 {[%emt 0:03:45]} 29. Rxf4 {[%emt 0:00:17]} e5 {[%emt 0:02:46]} 30. Rg4+ {[%emt 0:00:45]} Kf7 {[%emt 0:00:02]} 31. Ne4 {[%emt 0:00:34]} Nf5 {[%emt 0:00:35]} 32. Rf3 {[%emt 0:00:50]} Ke6 {[%emt 0:00:04]} 33. Nxf6 {[%emt 0:00:23]} Kxf6 {[%emt 0:00:02]} 34. Rg5 {[%emt 0:00:10]} 1-0

[Event "10th Cherry Blossom Classic 2023"]
[Site "Dulles"]
[Date "2023.05.26"]
[Round "2.23"]
[White "Diao, Matthew Guo"]
[Black "Girsh, Daniel"]
[Result "0-1"]
[ECO "D46"]
[WhiteElo "1973"]
[BlackElo "2123"]
[Annotator "RC"]
[PlyCount "124"]
[EventDate "2023.05.24"]
[EventType "swiss"]
[EventCountry "USA"]
[SourceTitle "playchess.com"]
[Source "ChessBase"]
[SourceQuality "1"]
[TimeControl "5400+30"]

1. d4 {[%emt 0:00:45]} Nf6 {[%emt 0:00:09]} 2. c4 {[%emt 0:00:04]} e6 {[%emt 0:00:05]} 3. Nf3 {[%emt 0:00:06]} d5 {[%emt 0:00:49]} 4. Nc3 {[%emt 0:00:13]} c6 {[%emt 0:00:52]} 5. e3 {[%emt 0:00:22]} Nbd7 {[%emt 0:00:06]} 6. Bd3 {[%emt 0:00:15]} dxc4 {[%emt 0:00:07]} 7. Bxc4 {[%emt 0:00:06]} b5 {[%emt 0:00:05]} 8. Bd3 {[%emt 0:00:07]} Bd6 {[%emt 0:00:02]} 9. O-O {[%emt 0:00:21]} O-O {[%emt 0:00:07]} 10. Qc2 {[%emt 0:04:29]} Bb7 {[%emt 0:02:37]} 11. Rd1 {[%emt 0:04:17]} Qe7 12. e4 {[%emt 0:20:23]} e5 {[%emt 0:14:14]} 13. Ne2 {[%emt 0:00:15]} c5 {[%emt 0:11:39]} 14. dxc5 {[%emt 0:10:37]} Nxc5 {[%emt 0:14:34]} 15. Ng3 {[%emt 0:02:47]} g6 {[%emt 0:01:34]} 16. Bg5 {[%emt 0:06:28]} Qe6 {[%emt 0:05:43]} 17. Bxf6 {[%emt 0:09:21]} Qxf6 {[%emt 0:00:11]} 18. Bxb5 {[%emt 0:00:12]} Rac8 {[%emt 0:00:30]} 19. Qe2 {[%emt 0:01:21]} Bc7 {[%emt 0:07:17]} 20. Qe3 {[%emt 0:11:04]} Bb6 {[%emt 0:19:13]} 21. Qg5 {[%emt 0:02:30]} Qxg5 {[%emt 0:00:15]} 22. Nxg5 {[%emt 0:00:07]} h6 {[%emt 0:00:05]} 23. Nf3 {[%emt 0:15:13]} Nxe4 {[%emt 0:00:51]} 24. Nxe4 {[%emt 0:00:59]} Bxe4 {[%emt 0:00:03]} 25. Nd2 {[%emt 0:05:37]} Bd5 {[%emt 0:00:26]} 26. Rac1 {[%emt 0:01:56]} Bxa2 {[%emt 0:21:56]} 27. b3 {[%emt 0:01:01]} Rxc1 {[%emt 0:00:00]} 28. Rxc1 {[%emt 0:00:01]} Rd8 {[%emt 0:00:00]} 29. Rc2 {[%emt 0:02:57]} Bb1 {[%emt 0:00:00]} 30. Nxb1 {[%emt 0:00:56]} Rd1+ {[%emt 0:00:00]} 31. Bf1 {[%emt 0:00:01]} Rxb1 {[%emt 0:00:00]} 32. g3 {[%emt 0:01:04]} Rxb3 {[%emt 0:00:00]} 33. Bc4 {[%emt 0:00:27]} Rb1+ {[%emt 0:00:00]} 34. Kg2 {[%emt 0:00:05]} Kg7 {[%emt 0:00:00]} 35. Rd2 {[%emt 0:00:51]} Rc1 {[%emt 0:00:00]} 36. Ba2 {[%emt 0:00:19]} Bd4 {[%emt 0:00:00]} 37. Kf3 {[%emt 0:00:45]} f5 {[%emt 0:00:00]} 38. h4 {[%emt 0:00:24]} Kf6 {[%emt 0:00:00]} 39. Ke2 {[%emt 0:00:29]} Rc3 {[%emt 0:00:00]} 40. Bd5 {[%emt 0:00:21]} Rc5 {[%emt 0:00:00]} 41. Bb3 {[%emt 0:00:22]} Rc3 {[%emt 0:00:00]} 42. Bd5 {[%emt 0:00:03]} a5 {[%emt 0:00:00]} 43. Ra2 {[%emt 0:00:39]} Rc5 {[%emt 0:00:00]} 44. Bg8 {[%emt 0:01:08]} Bc3 {[%emt 0:00:00]} 45. Rc2 {[%emt 0:00:34]} a4 {[%emt 0:00:00]} 46. Ba2 {[%emt 0:00:27]} e4 {[%emt 0:00:00]} 47. f3 {[%emt 0:00:32]} Bd4 {[%emt 0:00:00]} 48. Rxc5 {[%emt 0:00:34]} Bxc5 {[%emt 0:00:00]} 49. f4 {[%emt 0:00:29]} a3 {[%emt 0:00:00]} 50. Bc4 {[%emt 0:00:17]} Bd4 {[%emt 0:00:00]} 51. Bb3 {[%emt 0:00:22]} Ke7 {[%emt 0:00:00]} 52. Bc4 {[%emt 0:00:26]} Kd6 {[%emt 0:00:00]} 53. Bf7 {[%emt 0:00:16]} Kc5 {[%emt 0:00:00]} 54. Kd1 {[%emt 0:00:51]} Bf2 {[%emt 0:00:00]} 55. Kc2 {[%emt 0:00:30]} Bxg3 {[%emt 0:00:00]} 56. Bxg6 {[%emt 0:00:08]} e3 {[%emt 0:00:00]} 57. Bh5 {[%emt 0:01:10]} Bxf4 {[%emt 0:00:00]} 58. Be2 {[%emt 0:00:34]} Kd4 {[%emt 0:00:00]} 59. Kb3 {[%emt 0:00:12]} Bd6 {[%emt 0:00:00]} 60. h5 {[%emt 0:00:17]} Ke4 {[%emt 0:00:00]} 61. Bb5 {[%emt 0:00:38]} Kf3 {[%emt 0:00:00]} 62. Bc6+ {[%emt 0:00:49]} Kf2 {[%emt 0:00:00]} 0-1